Cogmind - Beta 17.1 @@@ ROGUE MODE // 2026.08.28 @ 08:52:59 Player: Lazz Result: Destroyed by G-34 Mercenary with Small Laser Performance ------------- Evolutions (1) 500 Regions Visited (2) 400 Robots Destroyed (27) 135 Value Destroyed (576) 576 Prototype IDs (2) 40 Alien Tech Used (0) 0 Bonus (0) 0 TOTAL SCORE: 1651 Bonus ------- None Cogmind --------- Core Integrity 0/400 Matter 257/300 Energy 24/100 System Corruption 19% Temperature Cool (8) Movement Flying (32) Location -9/Materials Parts ------- > --- POWER (1) -------- (None) > --- PROPULSION (3) --- VTOL Module VTOL Module > --- UTILITY (3) ------ Improved Signal Interpreter Seismic Detector > --- WEAPON (2) ------- (None) > --- INVENTORY (5) ---- Nuclear Core Nuclear Core Medium Matter Pod (100) Grenade Launcher Peak State ------------ > --- POWER ------------ Nuclear Core > --- PROPULSION ------- Improved Treads Flight Unit Flight Unit > --- UTILITY ---------- Improved Heat Sink Large Storage Unit > --- WEAPON ----------- Light Assault Rifle Light Assault Rifle > --- INVENTORY -------- Nuclear Core Nuclear Core Medium Matter Pod Improved Signal Interpreter Seismic Detector Mining Laser [Rating: 14] Favorites ----------- Power Ion Engine Engine Ion Engine Power Core Nuclear Core Propulsion Light Treads Treads Light Treads Leg Aluminum Leg Flight Unit Flight Unit Utility Large Storage Unit Device Improved Heat Sink Storage Large Storage Unit Processor Improved Signal Interpreter Weapon Assault Rifle Energy Gun Medium Laser Ballistic Gun Assault Rifle Launcher Rocket Launcher Special Weapon Mining Laser Build | -11 -10 -9 ------- Run | Yrd Mat Mat Slots Evolved 2 | . . 2 Power . | . . . Propulsion 1 | . . 1 Utility 1 | . . 1 Weapon . | . . . Parts Attached 25 | 7 1 17 Power 3 | 1 . 2 Engine 2 | 1 . 1 Core 1 | . . 1 Reactor . | . . . Propulsion 10 | 2 . 8 Treads 3 | 2 . 1 Leg 2 | . . 2 Wheel . | . . . Hover . | . . . Flight 5 | . . 5 Utility 6 | 2 1 3 Device 3 | 1 . 2 Storage 2 | 1 1 . Processor 1 | . . 1 Hackware . | . . . Protection . | . . . Artifact . | . . . Weapon 6 | 2 . 4 Energy Gun 1 | 1 . . Energy Cannon . | . . . Ballistic Gun 3 | 1 . 2 Ballistic Cannon . | . . . Launcher 1 | . . 1 Special Weapon 1 | . . 1 Impact Weapon . | . . . Slashing Weapon . | . . . Piercing Weapon . | . . . Special Melee Weapon . | . . . Unidentified Prototypes . | . . . Parts Lost 15 | . . 15 Power 1 | . . 1 Propulsion 6 | . . 6 Utility 2 | . . 2 Weapon 6 | . . 6 Highest Loss Streak 8 | . . 8 To Critical Strikes 2 | . . 2 Average Backups 4 | . 3 5 Power . | . . 1 Propulsion . | . . . Utility 1 | . 1 2 Weapon 1 | . 2 1 Tool/Special . | . . . Unused Backups 3 | . . 3 Power 2 | . . 2 Propulsion . | . . . Utility 1 | . . 1 Weapon . | . . . Tool/Special . | . . . Average Slot Usage (%) 82 | . 100 73 Engine 8 | . 14 5 Core 2 | . . 4 Treads 16 | . 28 11 Leg 3 | . . 5 Flight 4 | . . 7 Device 11 | . 14 10 Storage 11 | . 14 10 Energy Gun 7 | . 14 4 Ballistic Gun 13 | . 14 13 Peak Build Rating 14 | 7 7 14 Average Rating 8 | 5 7 10 On Entrance 4 | . 7 7 Avg Prop Armor Cover (%) 6 | . . 6 Naked Turns . | . . . Heaviest Build 32 | 15 30 32 Greatest Support 40 | 40 40 40 Greatest Overweight (x) 3 | . . 3 Average Overweight (x) . | . . . Largest Inventory Capacity 15 | 8 15 15 Average Capacity 13 | 6 14 14 Most Carried 6 | 3 4 6 Average Carried 4 | . 3 5 Final Capacity 15 | 8 15 5 Final Carried 4 | 3 4 4 Class Distribution -------------------- 78% | Mutant 21% | Scavenger-Mutant Dominant Class ---------------- Mutant | -10/Materials Mutant | -9/Materials Resources | -11 -10 -9 ----------- Run | Yrd Mat Mat Matter Collected 689 | 288 66 335 Remotely . | . . . Salvage Created 748 | 128 119 501 Parts 38 | 8 6 24 Haulers Intercepted . | . . . Recyclers Shooed . | . . . Parts Field Recycled . | . . . Retrieved Matter . | . . . Parts Self-Destructed . | . . . Prevented . | . . . Parts Restored . | . . . Kills | -11 -10 -9 ------- Run | Yrd Mat Mat Combat Hostiles Destroyed 21 | . 5 16 Guns 19 | . 5 14 Cannons 1 | . . 1 AOE 1 | . . 1 Classes Destroyed 8 | 2 2 4 Worker 1 | . . 1 Tunneler 2 | 2 . . Recycler 2 | 1 . 1 Watcher 1 | . . 1 Swarmer 10 | . 3 7 Grunt 9 | . 2 7 Brawler 1 | . . 1 Sentry 1 | . . 1 Best Kill Streak 5 | 3 5 4 Combat Bots Only 5 | . 5 4 Max Kills in Single Turn 1 | 1 1 1 Gunslinging . | . . . Exploded 1 | . . 1 Melee . | . . . Uniques/NPCs Destroyed . | . . . Combat | -11 -10 -9 -------- Run | Yrd Mat Mat Hostile Shots Fired 176 | . 26 150 Missed 38 | . 7 31 Hits 138 | . 19 119 Melee 10 | . . 10 Projectile 128 | . 19 109 Critical Strikes 8 | . . 8 Damage Taken 1789 | . 210 1579 Core 437 | . 35 402 Absorbed by Shields . | . . . Core Remaining (%) 93 | 100 86 . Volleys Fired 85 | 6 10 69 Largest 2 | 2 2 2 Hottest 120 | 70 70 120 Shots Fired 141 | 12 20 109 Gun 135 | 12 20 103 Cannon . | . . . Launcher 3 | . . 3 Special 3 | . . 3 Kinetic 101 | 6 10 85 Thermal 37 | 6 10 21 Explosive 3 | . . 3 Electromagnetic . | . . . Robot Hit Streak 15 | 4 9 15 Robot Miss Streak 7 | 1 7 3 Penetration Max . | . . . Secondary Targets 3 | . . 3 Max Gunslinging Chain 1 | . . 1 Shots Hit Robots 97 | 7 11 79 Core Hits 39 | 4 7 28 Critical Kills 1 | . . 1 Critical Parts Destroyed . | . . . Critical Strikes 4 | . . 4 Burn 3 | . . 3 Destroy 1 | . . 1 Melee Attacks . | . . . Impact . | . . . Slashing . | . . . Piercing . | . . . Sneak Attacks . | . . . Combat Hostiles . | . . . Follow-up Attacks . | . . . Damage Inflicted 1354 | 83 139 1132 Guns 998 | 83 139 776 Cannons . | . . . Explosions 308 | . . 308 Melee . | . . . Ramming . | . . . Kinetic 722 | 57 75 590 Thermal 324 | 26 64 234 Explosive 308 | . . 308 Electromagnetic . | . . . Impact . | . . . Slashing . | . . . Piercing . | . . . Highest Corruption 19 | . . 19 Average Corruption 15 | . . 15 Corruption Purged . | . . . Corruption Blocked . | . . . Effects 4 | . . 4 Matter Fused 3 | . . 3 Misdirections 1 | . . 1 Overload Shots . | . . . Overflow Damage . | . . . Projectiles . | . . . Explosions . | . . . Melee . | . . . Knockbacks . | . . . Impact . | . . . Kinetic . | . . . Secondary . | . . . Self-Inflicted Damage 70 | . . 70 Shots 2 | . . 2 Rammed . | . . . Targets Rammed . | . . . Kicked . | . . . Crushed . | . . . Highest Temperature 123 | 36 84 123 Average Temperature 40 | 15 38 60 Received Heat Transfer 663 | . 72 591 Siege Activations . | . . . Martial Activations . | . . . Shielding Activations . | . . . Robots Disrupted . | . . . Combat Hostiles . | . . . Robots Corrupted . | . . . Combat Hostiles . | . . . Parts Fried . | . . . Impact Corruptions . | . . . Robots Melted . | . . . Combat Hostiles . | . . . Parts Melted 3 | 1 1 1 Heat Transferred 1136 | 74 185 877 Parts Sabotaged . | . . . Parts Stolen . | . . . Parts Stripped . | . . . Power Chain Reactions . | . . . Alert | -11 -10 -9 ------- Run | Yrd Mat Mat Maximum Alert Level 1 | . . 1 Low Security (%) 89 | 100 100 81 Level 1 10 | . . 18 Level 2 . | . . . Level 3 . | . . . Level 4 . | . . . Level 5 . | . . . High Security . | . . . Max Security . | . . . Peak Influence 225 | 10 120 225 Initial 42 | . . 42 Average 76 | 1 13 124 Influence Increases 609 | 15 120 474 Destroy 0b10 Robot/C 420 | . 100 320 Destroy 0b10 Robot/NC 30 | 15 . 15 Destroy Leader 82 | . 20 62 Disable Machine 30 | . . 30 Destroy Structure 17 | . . 17 Lose Combat Pursuer 30 | . . 30 Influence Decreases 481 | 15 20 446 Entered New Map 58 | . . 58 Time Decay 273 | 15 20 238 Lost Part 150 | . . 150 Squads Dispatched 2 | . 1 1 Investigation 1 | . . 1 Extermination . | . . . Reinforcement 1 | . 1 . Assault . | . . . Garrison . | . . . Intercept . | . . . Searches Triggered . | . . . Construction Impeded . | . . . Haulers Reinforced . | . . . Active Scanning Responses . | . . . Cargo Convoy Interrupts . | . . . Stealth | -11 -10 -9 --------- Run | Yrd Mat Mat Distress Signals 5 | . 2 3 Communications Jammed . | . . . Distress Signals . | . . . Times Spotted 33 | . 10 23 Peak Tracking Total 5 | . 4 5 Tactical Retreats 2 | . . 2 Traps | -11 -10 -9 ------- Run | Yrd Mat Mat Traps Triggered 1 | . . 1 Indirectly . | . . . Trap Hack Attempts . | . . . Triggered . | . . . Disarmed . | . . . Reprogrammed . | . . . Reused . | . . . Traps Extracted . | . . . Installed . | . . . Triggered . | . . . Machines | -11 -10 -9 ---------- Run | Yrd Mat Mat Machines Disabled 2 | . . 2 Max in Single Turn 1 | . . 1 Machines Repaired . | . . . Machines Dismantled . | . . . Machines Sabotaged . | . . . Overloaded Fab Kills . | . . . Hacking | -11 -10 -9 --------- Run | Yrd Mat Mat Machines Accessed 3 | . 2 1 Terminals 3 | . 2 1 Fabricators . | . . . Repair Stations . | . . . Recycling Units . | . . . Scanalyzers . | . . . Garrison Access . | . . . Total Hacks 7 | . 3 4 Successful 2 | . 1 1 Failed 5 | . 2 3 Catastrophic 2 | . 1 1 Database Lockouts . | . . . Manual 5 | . 3 2 Terminals 7 | . 3 4 Fabricators . | . . . Repair Stations . | . . . Recycling Units . | . . . Scanalyzers . | . . . Garrison Access . | . . . Terminal Hacks 2 | . 1 1 Robot Analysis 1 | . 1 . Prototype ID Bank 1 | . . 1 Fabricator Hacks . | . . . Repair Station Hacks . | . . . Recycling Unit Hacks . | . . . Scanalyzer . | . . . Garrison Access Hacks . | . . . Unauthorized Hacks . | . . . Terminals . | . . . Fabricators . | . . . Repair Stations . | . . . Recycling Units . | . . . Scanalyzers . | . . . Garrison Access . | . . . Data Cores Recovered . | . . . Used . | . . . Hacking Detections 3 | . 2 1 Full Trace Events . | . . . Feedback Events . | . . . Feedback Blocked . | . . . Robot Schematics Acquired . | . . . Robots Built . | . . . Authchips . | . . . Time . | . . . Total Robot Build Rating . | . . . Part Schematics Acquired . | . . . Parts Built . | . . . Authchips . | . . . Time . | . . . Total Part Build Rating . | . . . Part Studies Acquired . | . . . Parts Repaired . | . . . Time . | . . . Parts Recycled . | . . . Recycled Matter . | . . . Retrieved Matter . | . . . Retrieved Components . | . . . Parts Scanalyzed . | . . . Part Schematics Acquired . | . . . Parts Damaged . | . . . Bothacking | -11 -10 -9 ------------ Run | Yrd Mat Mat Used RIF Installer . | . . . Robots Hacked . | . . . Non-combat . | . . . Combat . | . . . Robot Hacks Applied . | . . . Relay Couplers Released . | . . . Fabnet Peak Effective % . | . . . Robots Rewired . | . . . Allies Hacked . | . . . Hacks Repelled . | . . . Allies | -11 -10 -9 -------- Run | Yrd Mat Mat Total Allies . | . . . Largest Group . | . . . Highest-Rated Group . | . . . Highest-Rated Ally . | . . . Total Orders . | . . . Ally Attacks . | . . . Total Damage . | . . . Kills . | . . . Allies Corrupted . | . . . Allies Melted . | . . . Intel | -11 -10 -9 ------- Run | Yrd Mat Mat Active Infowar (turns) 374 | 24 263 87 Seismic 374 | 24 263 87 Robot Analysis Total 1 | . 1 . Derelict Logs Recovered . | . . . Drone Launches . | . . . Drone Recoveries . | . . . Exploration | -11 -10 -9 ------------- Run | Yrd Mat Mat Turns Passed 913 | 118 263 532 Spaces Moved 346 | 52 130 164 Core 41 | 1 . 40 Treads 264 | 51 130 83 Legs 33 | . . 33 Wheels . | . . . Hover . | . . . Flight 8 | . . 8 Fastest Speed 32 | 50 160 32 Average Speed 159 | 157 160 159 Slowest Speed 277 | 160 160 277 Overloaded Moves . | . . . Propulsion Burnouts . | . . . Robots Hopped . | . . . Potential Cave-ins . | . . . Cave-ins Triggered . | . . . Exploration Rate (%) 16 | 4 23 23 Regions Visited 2 Branch Regions . Pre-discovered Areas . | . . . Known Exits Taken . | . . . Unknown Exits Taken 2 | 1 1 . Scrap Searched . | . . . Spaces Dug . | . . . Terrain Destroyed 20 | . . 20 Melee . | . . . Projectile 1 | . . 1 AOE 19 | . . 19 Terrain Rammed . | . . . Walls Destroyed . | . . . Machines Disabled . | . . . Actions | -11 -10 -9 --------- Run | Yrd Mat Mat Total 564 | 72 165 327 Wait 93 | 5 23 65 Move 344 | 51 129 164 Hop . | . . . Pick Up 9 | 3 1 5 Fast Attach 18 | 7 . 11 Attach 5 | . . 5 Detach . | . . . Swap 3 | . 1 2 Drop 7 | . 1 6 Fire 85 | 6 10 69 Melee . | . . . Ram . | . . . Kick . | . . . Crush . | . . . Escape Stasis . | . . . Rewire . | . . . Trap . | . . . Miscellaneous . | . . . Route ------- -11/Scrapyard -10/Materials -9/Materials (discovered 1 exit: [*Min]) History --------- Turn | Location | Event 13 | -11/Scrapyard | Discovered new exit (range 15) 119 | -11/Scrapyard | Entered Materials 305 | -10/Materials | Build established: Mutant 371 | -10/Materials | Discovered new exit (range 6) 382 | -10/Materials | Entered another Materials area 382 | -9/Materials | Evolved 2 slots: Propulsion x1, Utility x1 634 | -9/Materials | Lost 5 parts (2n3w) 781 | -9/Materials | Core integrity fell below 50% 829 | -9/Materials | Discovered new exit (range 16) 875 | -9/Materials | System corruption reached 10% 880 | -9/Materials | Core integrity fell below 20% 914 | -9/Materials | Destroyed by G-34 Mercenary with Small Laser Last Messages --------------- 00887_ Acquired 4 matter. 00887_ K-01 Serf collects debris. 00890_ System corrupted: Matter fused (-5). 00892_ K-01 Serf collects debris. 00893_ Connecting with Terminal... 00893_ Current location identified: Materials >>Prototypes Downloading prototype IDs... Imp. Assault Rifle Imp. EM Shotgun 00895_ Triggered Alarm Trap. 00895_ An alarm sounds. 00895_ ALERT: Alarm triggered, dispatching investigation squad. 00896_ Mining Laser destroyed. 00896_ Critical hit (Burn: +37). 00905_ System corrupted: Matter fused (-8). 00905_ Imp. Heat Sink destroyed. 00909_ Acquired VTOL Module. 00913_ Acquired Grenade Launcher. Map ----- +----------------------------------------------------+ | ? #= """ #??????????????!?!?????????? | | #[[* #??????????????????????????? | | # == #??????????????????????????? | | #################+#########???????????????????? | | ????????????????# #?# #????????????????? | | ????????????????# #?# """ #????????????????? | | ################# ### """"" #????????????????? | | # """"" #????????????????? | | + """"" #????????????????? | | ! #!%""" #????????????????? | | ## %"############### #????????????????? | | ?# ##?????#######?# #????????????????? | | ?# #????? ?# #????????????????? | | ?# #???? """###########????????????????? | | ?# #???#! R"#??????????????????????????? | | ?# #???# """#??????????????????????????? | | ?# #???# """ #??????????????????????????? | | ?# #???# """ #??????????????????????????? | | ?# #???? """ ???????????????????????????? | | ## ##????? ?????????????????????????????? | | # ########+########+####+###??????????????? | | # g #??????????????? | | # T g +??????????????? | | # ! #??????????????? | | # ##+######### #??????????????? | | ####### ??????# @ #??????????????? | | ??????#//! ????# #??????????????? | | ??????#//! Y #??????????????? | | ??????#/! ##### k ????????????? | | ??????# #???# ######???????????? | | ??????# #???# ### ### #????????????????? | | ??????## #####???# #?# #?? #????????????????? | | ???????###???????# #?# #?? #????????????????? | | ???????????????? #?# #???#????????????????? | | ???????????????####+##?#+#????????????????????? | | ??????????????????????????????????????????????? | | ??????????????????????????????????????????????? | | ??????????????????????????????????????????????? | | ??????????????????????????????????????????????? | | ??????????????????????????????????????????????? | | ??????????????????????????????????????????????? | | ??????????????????????????????????????????????? | | ??????????????????????????????????????????????? | | ??????????????????????????????????????????????? | | ??????????????????????????????????????????????? | | ??????????????????????????????????????????????? | | ??????????????????????????????????????????????? | | ??????????????????????????????????????????????? | | ??????????????????????????????????????????????? | | ??????????????????????????????????????????????? | +----------------------------------------------------+ Best States ------------- Heat Dissipation 42 Energy Generation 14 Energy Capacity 265 Matter Stores 300 Matter Capacity 300 Sight Range 16 Terrain Scan Density 10 Evasion (%) 50 Recoil Reduction 2 Item Schematics ----------------- None Robot Schematics ------------------ None Fabricated ------------ Nothing Repaired ---------- Nothing Studied --------- None Alien Tech Used ----------------- None Achievements -------------- None Challenges ------------ None Game ------ Seed SkeletonMobileDeck Manual? 0 Play Time 00:07:15 Cumulative 288.0 hours Start 2026.08.28 @ 08:45:35 End 2026.08.28 @ 08:52:59 Sessions 1 Manual Loads 0 Difficulty Rogue Special Mode None Game No. 364 Rogue 364 Adventurer 0 Explorer 0 Win Type - Total 7 Types 6/0/0/1/0/0/0/0/0/0 Lore% 79 Gallery% 67 Achievement% 56 Wizard Run 0 Options --------- Layout 2 ASCII 0 Keyboard 0 Movement Mouse Keybinds 0 Fullscreen 1 Font 24/Smallcaps Map View 50x44 Zoom Use 0% Tactical HUD 1 Map Filters NONE Filters NONE Steam 1 RUN: 17cfb091-5a7a-4a69-b7da-2cdce7d89b8e